fUSD/lending_fUSD_20260613
["ID","MTS","AMOUNT","RATE_DAILY","PERIOD"]
[424972754,1781364643000,-150.0,0.00013904,2]
[424972752,1781364643000,-150.0,0.00013887,2]
[424972738,1781364643000,-150.0,0.00013813,2]
[424972739,1781364643000,-150.0,0.00013821,2]
[424972742,1781364643000,-150.0,0.00013835,2]
[424972767,1781364643000,-150.0,0.00014009,2]
[424972744,1781364643000,-150.0,0.00013857,2]
[424972766,1781364643000,-250.0,0.00014,2]
[424972760,1781364643000,-150.0,0.00013987,2]
[424972758,1781364643000,-150.0,0.00013987,2]
[424972759,1781364643000,-150.0,0.00013987,2]
[424972761,1781364643000,-150.0,0.00013987,2]
[424972764,1781364643000,-1555.5,0.00013998,2]
[424972757,1781364643000,-150.0,0.00013965,2]
[424972755,1781364643000,-150.0,0.00013922,2]
[424972763,1781364643000,-60000.0,0.0001399,2]
[424972765,1781364643000,-1500.0,0.00014,2]
[424972762,1781364643000,-150.0,0.00013987,2]
[424972756,1781364643000,-150.0,0.00013944,2]
[424972799,1781364643000,-150.0,0.0001427,2]
[424972753,1781364643000,-150.0,0.000139,2]
[424972795,1781364643000,-150.0,0.00014237,2]
[424972826,1781364643000,-292.30346816,0.00014399,2]
[424972830,1781364643000,-500.0,0.00014399,2]
[424972828,1781364643000,-500.0,0.00014399,2]
[424972827,1781364643000,-500.0,0.00014399,2]
[424972825,1781364643000,-500.0,0.00014399,2]
[424972831,1781364643000,-500.0,0.00014399,2]
[424972833,1781364643000,-550.83653392,0.00014399,2]
[424972832,1781364643000,-684.76,0.00014399,2]
[424972841,1781364643000,-500.0,0.00014399,2]
[424972842,1781364643000,-500.0,0.00014399,2]
[424972840,1781364643000,-500.0,0.00014399,2]
[424972822,1781364643000,-500.0,0.00014399,2]
[424972834,1781364643000,-500.0,0.00014399,2]
[424972835,1781364643000,-500.0,0.00014399,2]
[424972839,1781364643000,-500.0,0.00014399,2]
[424972844,1781364643000,-500.65078103,0.00014399,2]
[424972837,1781364643000,-521.81,0.00014399,2]
[424972846,1781364643000,-500.0,0.00014399,2]
[424972845,1781364643000,-500.0,0.00014399,2]
[424972847,1781364643000,-150.0,0.000144,2]
[424972851,1781364643000,-150.0,0.00014422,2]
[424972849,1781364643000,-2000.0,0.000144,5]
[424972848,1781364643000,-239105.97367201,0.000144,2]
[424972793,1781364643000,-150.0,0.00014226,2]
[424972843,1781364643000,-1283.14,0.00014399,2]
[424972824,1781364643000,-500.0,0.00014399,2]
[424972850,1781364643000,-150.0,0.00014404,2]
[424972829,1781364643000,-500.0,0.00014399,2]
[424972797,1781364643000,-150.0,0.00014237,2]
[424972798,1781364643000,-150.0,0.00014248,2]
[424972801,1781364643000,-150.0,0.00014291,2]
[424972803,1781364643000,-150.0,0.0001432,2]
[424972800,1781364643000,-150.0,0.00014287,2]
[424972806,1781364643000,-150.0,0.00014362,2]
[424972807,1781364643000,-150.0,0.00014362,2]
[424972823,1781364643000,-898.26,0.00014399,2]
[424972802,1781364643000,-150.0,0.00014313,2]
[424972808,1781364643000,-150.0,0.00014378,2]
[424972805,1781364643000,-150.0,0.00014356,2]
[424972809,1781364643000,-23652.0,0.00014384,2]
[424972804,1781364643000,-150.0,0.00014335,2]
[424972811,1781364643000,-500.0,0.00014399,2]
[424972814,1781364643000,-713.65,0.00014399,2]
[424972816,1781364643000,-500.0,0.00014399,2]
[424972812,1781364643000,-500.0,0.00014399,2]
[424972810,1781364643000,-150.0,0.00014387,2]
[424972817,1781364643000,-500.0,0.00014399,2]
[424972813,1781364643000,-500.0,0.00014399,2]
[424972818,1781364643000,-580.09962595,0.00014399,2]
[424972820,1781364643000,-500.0,0.00014399,2]
[424972819,1781364643000,-500.0,0.00014399,2]
[424972815,1781364643000,-500.0,0.00014399,2]
[424972821,1781364643000,-500.0,0.00014399,2]
[424972887,1781364644000,-150.0,0.00014737,2]
[424972888,1781364644000,-150.0,0.00014737,2]
[424972883,1781364644000,-900.0,0.000147,5]
[424972881,1781364644000,-150.0,0.00014687,2]
[424972886,1781364644000,-150.0,0.00014726,2]
[424972879,1781364644000,-150.0,0.00014661,2]
[424972884,1781364644000,-2300.0,0.000147,5]
[424972882,1781364644000,-600.0,0.000147,5]
[424972885,1781364644000,-150.0,0.00014704,2]
[424972889,1781364644000,-150.0,0.00014737,2]
[424972901,1781364644000,-3000.0,0.000148,2]
[424972895,1781364644000,-3000.0,0.000148,2]
[424972893,1781364644000,-150.0,0.00014791,2]
[424972892,1781364644000,-150.0,0.00014786,2]
[424972896,1781364644000,-3000.0,0.000148,2]
[424972891,1781364644000,-150.0,0.00014769,2]
[424972894,1781364644000,-1968.80835378,0.00014799,2]
[424972898,1781364644000,-3000.0,0.000148,2]
[424972897,1781364644000,-3000.0,0.000148,2]
[424972908,1781364644000,-2000.0,0.000148,2]
[424972899,1781364644000,-3000.0,0.000148,2]
[424972880,1781364644000,-150.0,0.00014682,2]
[424972890,1781364644000,-150.0,0.00014747,2]
[424972876,1781364644000,-150.0,0.00014617,2]
[424972859,1781364644000,-2700.0,0.000145,5]
[424972878,1781364644000,-150.0,0.00014653,2]
[424972900,1781364644000,-3000.0,0.000148,2]
[424972854,1781364644000,-150.0,0.00014487,2]
[424972855,1781364644000,-150.0,0.00014487,2]
[424972853,1781364644000,-150.0,0.00014465,2]
[424972852,1781364644000,-150.0,0.00014443,2]
[424972856,1781364644000,-150.0,0.00014487,2]
[424972861,1781364644000,-9500.0,0.000145,5]
[424972862,1781364644000,-150.0,0.00014508,2]
[424972864,1781364644000,-150.0,0.0001453,2]
[424972863,1781364644000,-158.06162742,0.00014521,10]
[424972865,1781364644000,-1613.0535,0.00014546,2]
[424972877,1781364644000,-150.0,0.00014639,2]
[424972857,1781364644000,-150.0,0.00014487,2]
[424972860,1781364644000,-3900.0,0.000145,5]
[424972866,1781364644000,-150.0,0.00014552,2]
[424972869,1781364644000,-150.0,0.00014587,2]
[424972867,1781364644000,-150.0,0.0001457,2]
[424972868,1781364644000,-150.0,0.00014574,2]
[424972875,1781364644000,-150.0,0.00014612,2]
[424972872,1781364644000,-4800.0,0.000146,5]
[424972870,1781364644000,-150.0,0.00014595,2]
[424972873,1781364644000,-11900.0,0.000146,5]
[424972874,1781364644000,-150.0,0.00014612,2]
[424972871,1781364644000,-3400.0,0.000146,5]
[424972858,1781364644000,-150.0,0.00014487,2]
[424972904,1781364644000,-1019.96,0.000148,2]
[424972912,1781364644000,-2000.0,0.000148,2]
[424972905,1781364644000,-2000.0,0.000148,2]
[424972936,1781364644000,-25000.0,0.00014882,3]
[424972938,1781364644000,-150.0,0.00014886,2]
[424972939,1781364644000,-25000.0,0.00014891,3]
[424972933,1781364644000,-5800.0,0.00014866,2]
[424972934,1781364644000,-5800.0,0.00014874,2]
[424972937,1781364644000,-5800.0,0.00014883,2]
[424972940,1781364644000,-5800.0,0.00014891,2]
[424972941,1781364644000,-151.0,0.00014897,2]
[424972945,1781364644000,-500.0,0.00014897,2]
[424972942,1781364644000,-151.0,0.00014897,2]
[424972944,1781364644000,-500.0,0.00014897,2]
[424972943,1781364644000,-684.76,0.00014897,2]
[424972950,1781364644000,-713.65,0.00014898,2]
[424972946,1781364644000,-500.0,0.00014897,2]
[424972902,1781364644000,-3000.0,0.000148,2]
[424972948,1781364644000,-500.0,0.00014898,2]
[424972947,1781364644000,-500.0,0.00014898,2]
[424972952,1781364644000,-500.0,0.00014898,2]
[424972951,1781364644000,-500.0,0.00014898,2]
[424972954,1781364644000,-500.0,0.00014898,2]
[424972953,1781364644000,-591.76718156,0.00014898,2]
[424972956,1781364644000,-500.0,0.00014898,2]
[424972955,1781364644000,-500.0,0.00014898,2]
[424972935,1781364644000,-150.0,0.00014878,2]
[424972932,1781364644000,-150.0,0.00014861,2]
[424972949,1781364644000,-500.0,0.00014898,2]
[424972931,1781364644000,-150.0,0.00014861,2]
[424972930,1781364644000,-150.0,0.00014856,2]
[424972907,1781364644000,-2000.0,0.000148,2]
[424972906,1781364644000,-2000.0,0.000148,2]
[424972903,1781364644000,-3000.0,0.000148,2]
[424972910,1781364644000,-2000.0,0.000148,2]
[424972909,1781364644000,-2000.0,0.000148,2]
[424972915,1781364644000,-2000.0,0.000148,2]
[424972916,1781364644000,-2000.0,0.000148,2]
[424972914,1781364644000,-2000.0,0.000148,2]
[424972918,1781364644000,-2000.0,0.000148,2]
[424972913,1781364644000,-2000.0,0.000148,2]
[424972911,1781364644000,-2000.0,0.000148,2]
[424972919,1781364644000,-2000.0,0.000148,2]
[424972920,1781364644000,-2000.0,0.000148,2]
[424972917,1781364644000,-2000.0,0.000148,2]
[424972927,1781364644000,-150.0,0.0001482,2]
[424972928,1781364644000,-150.0,0.00014834,2]
[424972924,1781364644000,-900.0,0.000148,5]
[424972921,1781364644000,-2000.0,0.000148,2]
[424972922,1781364644000,-659.4,0.000148,2]
[424972925,1781364644000,-2300.0,0.000148,5]
[424972926,1781364644000,-150.0,0.00014813,2]
[424972923,1781364644000,-600.0,0.000148,5]
[424972929,1781364644000,-1968.80835377,0.0001485,2]
[424972979,1781364645000,-500.0,0.00014899,2]
[424972975,1781364645000,-500.0,0.00014899,2]
[424972983,1781364645000,-713.65,0.00014899,2]
[424972981,1781364645000,-500.0,0.00014899,2]
[424972974,1781364645000,-508.6960443,0.00014899,2]
[424972982,1781364645000,-713.65,0.00014899,2]
[424972984,1781364645000,-713.65,0.00014899,2]
[424972977,1781364645000,-500.0,0.00014899,2]
[424972985,1781364645000,-713.65,0.00014899,2]
[424972988,1781364645000,-500.0,0.00014899,2]
[424972986,1781364645000,-500.0,0.00014899,2]
[424972987,1781364645000,-500.0,0.00014899,2]
[424972976,1781364645000,-500.0,0.00014899,2]
[424972978,1781364645000,-500.0,0.00014899,2]
[424972973,1781364645000,-500.0,0.00014899,2]
[424972959,1781364645000,-500.0,0.00014898,2]
[424972964,1781364645000,-500.0,0.00014898,2]
[424972989,1781364645000,-500.0,0.00014899,2]
[424972957,1781364645000,-898.26,0.00014898,2]
[424972960,1781364645000,-500.0,0.00014898,2]
[424972958,1781364645000,-500.0,0.00014898,2]
[424972961,1781364645000,-500.0,0.00014898,2]
[424972963,1781364645000,-500.0,0.00014898,2]
[424972969,1781364645000,-1283.14,0.00014898,2]
[424972965,1781364645000,-500.0,0.00014898,2]
[424972971,1781364645000,-982.591,0.00014899,2]
[424972962,1781364645000,-500.0,0.00014898,2]
[424972970,1781364645000,-466.46074342,0.00014898,2]
[424972967,1781364645000,-500.0,0.00014898,2]
[424972966,1781364645000,-521.81,0.00014898,2]
[424972968,1781364645000,-500.0,0.00014898,2]
[424972972,1781364645000,-114143.49716145,0.00014899,2]
[424972990,1781364645000,-500.0,0.00014899,2]
[424972980,1781364645000,-500.0,0.00014899,2]
[424972993,1781364645000,-500.0,0.00014899,2]
[424973010,1781364645000,-500.0,0.00014899,2]
[424973013,1781364645000,-500.0,0.00014899,2]
[424973015,1781364645000,-500.0,0.00014899,2]
[424973012,1781364645000,-500.0,0.00014899,2]
[424973011,1781364645000,-247.16,0.00014899,2]
[424973016,1781364645000,-500.0,0.00014899,2]
[424973014,1781364645000,-348.04406412,0.00014899,2]
[424973018,1781364645000,-500.0,0.00014899,2]
[424973017,1781364645000,-500.0,0.00014899,2]
[424973022,1781364645000,-684.76,0.00014899,2]
[424973019,1781364645000,-500.0,0.00014899,2]
[424973021,1781364645000,-684.76,0.00014899,2]
[424973023,1781364645000,-684.76,0.00014899,2]
[424972991,1781364645000,-509.08024847,0.00014899,2]
[424973020,1781364645000,-415.12475003,0.00014899,2]
[424973009,1781364645000,-500.0,0.00014899,2]
[424973025,1781364645000,-684.76,0.00014899,2]
[424973007,1781364645000,-500.0,0.00014899,2]
[424972994,1781364645000,-500.0,0.00014899,2]
[424972992,1781364645000,-500.0,0.00014899,2]
[424972995,1781364645000,-570.97788295,0.00014899,2]
[424973000,1781364645000,-898.26,0.00014899,2]
[424973008,1781364645000,-500.0,0.00014899,2]
[424972996,1781364645000,-500.0,0.00014899,2]
[424973026,1781364645000,-684.76,0.00014899,2]
[424972997,1781364645000,-500.0,0.00014899,2]
[424972999,1781364645000,-500.0,0.00014899,2]
[424973003,1781364645000,-898.26,0.00014899,2]
[424973001,1781364645000,-898.26,0.00014899,2]
[424973002,1781364645000,-898.26,0.00014899,2]
[424973004,1781364645000,-500.0,0.00014899,2]
[424973006,1781364645000,-500.0,0.00014899,2]
[424973005,1781364645000,-500.0,0.00014899,2]
[424972998,1781364645000,-500.0,0.00014899,2]
[424973047,1781364646000,-500.0,0.00014899,2]
[424973044,1781364646000,-500.0,0.00014899,2]
[424973045,1781364646000,-500.0,0.00014899,2]
[424973046,1781364646000,-500.0,0.00014899,2]
[424973048,1781364646000,-500.0,0.00014899,2]
[424973049,1781364646000,-500.0,0.00014899,2]
[424973056,1781364646000,-1283.14,0.00014899,2]
[424973051,1781364646000,-500.0,0.00014899,2]
[424973052,1781364646000,-500.0,0.00014899,2]
[424973053,1781364646000,-500.0,0.00014899,2]
[424973054,1781364646000,-500.0,0.00014899,2]
[424973055,1781364646000,-1283.14,0.00014899,2]
[424973043,1781364646000,-265.942942,0.00014899,2]
[424973050,1781364646000,-500.0,0.00014899,2]
[424973042,1781364646000,-500.0,0.00014899,2]
[424973032,1781364646000,-500.0,0.00014899,2]
[424973041,1781364646000,-500.0,0.00014899,2]
[424973040,1781364646000,-500.0,0.00014899,2]
[424973037,1781364646000,-521.81,0.00014899,2]
[424973038,1781364646000,-521.81,0.00014899,2]
[424973036,1781364646000,-521.81,0.00014899,2]
[424973033,1781364646000,-500.0,0.00014899,2]
[424973035,1781364646000,-521.81,0.00014899,2]
[424973034,1781364646000,-500.0,0.00014899,2]
[424973031,1781364646000,-500.0,0.00014899,2]
[424973030,1781364646000,-500.0,0.00014899,2]
[424973029,1781364646000,-500.0,0.00014899,2]
[424973028,1781364646000,-500.0,0.00014899,2]
[424973027,1781364646000,-500.0,0.00014899,2]
[424973057,1781364646000,-1283.14,0.00014899,2]
[424973039,1781364646000,-500.0,0.00014899,2]
[424973061,1781364646000,-500.0,0.00014899,2]
[424973058,1781364646000,-1283.14,0.00014899,2]
[424973060,1781364646000,-500.0,0.00014899,2]
[424973094,1781364646000,-700.0,0.0001497,2]
[424973092,1781364646000,-700.0,0.0001497,2]
[424973091,1781364646000,-500.0,0.0001497,2]
[424973088,1781364646000,-400.0,0.0001497,2]
[424973086,1781364646000,-400.0,0.0001497,2]
[424973084,1781364646000,-242.44,0.00014968,2]
[424973085,1781364646000,-387.57,0.00014968,2]
[424973077,1781364646000,-1968.80835377,0.000149,2]
[424973080,1781364646000,-291.70602046,0.00014908,2]
[424973081,1781364646000,-150.0,0.00014921,2]
[424973082,1781364646000,-150.0,0.00014943,2]
[424973079,1781364646000,-150.0,0.00014903,2]
[424973078,1781364646000,-279.73264624,0.00014902,2]
[424973076,1781364646000,-2300.0,0.000149,5]
[424973083,1781364646000,-150.0,0.00014965,2]
[424973074,1781364646000,-3256.82355683,0.000149,2]
[424973075,1781364646000,-1203.83371195,0.000149,2]
[424973059,1781364646000,-500.0,0.00014899,2]
[424973062,1781364646000,-500.0,0.00014899,2]
[424973068,1781364646000,-473.13,0.000149,2]
[424973063,1781364646000,-500.0,0.00014899,2]
[424973064,1781364646000,-150.0,0.00014899,2]
[424973065,1781364646000,-938787.37662692,0.000149,3]
[424973093,1781364646000,-700.0,0.0001497,2]
[424973067,1781364646000,-25000.0,0.000149,3]
[424973069,1781364646000,-35241.89566823,0.000149,2]
[424973072,1781364646000,-39528.03327682,0.000149,2]
[424973073,1781364646000,-900.0,0.000149,5]
[424973071,1781364646000,-600.0,0.000149,5]
[424973070,1781364646000,-5800.0,0.000149,2]
[424973066,1781364646000,-10845.16048522,0.000149,2]
[424973126,1781364647000,-500.0,0.00014988,2]
[424973137,1781364647000,-500.0,0.00014988,2]
[424973129,1781364647000,-500.0,0.00014988,2]
[424973143,1781364647000,-1283.14,0.00014988,2]
[424973140,1781364647000,-500.0,0.00014988,2]
[424973132,1781364647000,-500.0,0.00014988,2]
[424973134,1781364647000,-521.81,0.00014988,2]
[424973154,1781364647000,-151.0,0.00014997,2]
[424973148,1781364647000,-250.0,0.0001499,2]
[424973151,1781364647000,-2000.0,0.0001499,2]
[424973163,1781364647000,-684.76,0.00014998,2]
[424973157,1781364647000,-151.0,0.00014997,2]
[424973160,1781364647000,-170.12538089,0.00014998,2]
[424973166,1781364647000,-500.0,0.00014998,2]
[424973146,1781364647000,-121042.28263374,0.00014989,2]
[424973168,1781364647000,-2785.29489537,0.00014999,2]
[424973098,1781364647000,-150.0,0.00014986,2]
[424973110,1781364647000,-500.0,0.00014988,2]
[424973095,1781364647000,-800.0,0.0001497,2]
[424973171,1781364647000,-500.0,0.00014999,2]
[424973096,1781364647000,-151.47,0.00014985,2]
[424973097,1781364647000,-150.0,0.00014986,2]
[424973100,1781364647000,-150.0,0.00014986,2]
[424973102,1781364647000,-150.0,0.00014986,2]
[424973120,1781364647000,-898.26,0.00014988,2]
[424973099,1781364647000,-150.0,0.00014986,2]
[424973105,1781364647000,-150.0,0.00014986,2]
[424973101,1781364647000,-150.0,0.00014986,2]
[424973103,1781364647000,-150.0,0.00014986,2]
[424973112,1781364647000,-713.65,0.00014988,2]
[424973114,1781364647000,-512.84773474,0.00014988,2]
[424973117,1781364647000,-500.0,0.00014988,2]
[424973107,1781364647000,-150.0,0.00014986,2]
[424973172,1781364647000,-500.0,0.00014999,2]
[424973123,1781364647000,-500.0,0.00014988,2]
[424973174,1781364647000,-500.0,0.00014999,2]
[424973194,1781364647000,-150.34754403,0.00014999,2]
[424973193,1781364647000,-500.0,0.00014999,2]
[424973198,1781364647000,-898.26,0.00014999,2]
[424973195,1781364647000,-898.26,0.00014999,2]
[424973197,1781364647000,-898.26,0.00014999,2]
[424973200,1781364647000,-898.26,0.00014999,2]
[424973199,1781364647000,-898.26,0.00014999,2]
[424973201,1781364647000,-898.26,0.00014999,2]
[424973203,1781364647000,-898.26,0.00014999,2]
[424973205,1781364647000,-898.26,0.00014999,2]
[424973202,1781364647000,-898.26,0.00014999,2]
[424973204,1781364647000,-898.26,0.00014999,2]
[424973207,1781364647000,-898.26,0.00014999,2]
[424973206,1781364647000,-898.26,0.00014999,2]
[424973208,1781364647000,-898.37181277,0.00014999,2]
[424973196,1781364647000,-898.26,0.00014999,2]
[424973191,1781364647000,-500.0,0.00014999,2]
[424973175,1781364647000,-362.39892233,0.00014999,2]
[424973188,1781364647000,-713.65,0.00014999,2]
[424973192,1781364647000,-500.0,0.00014999,2]
[424973173,1781364647000,-500.0,0.00014999,2]
[424973177,1781364647000,-713.65,0.00014999,2]
[424973178,1781364647000,-713.65,0.00014999,2]
[424973179,1781364647000,-713.65,0.00014999,2]
[424973181,1781364647000,-713.65,0.00014999,2]
[424973182,1781364647000,-713.65,0.00014999,2]
[424973176,1781364647000,-713.65,0.00014999,2]
[424973183,1781364647000,-713.65,0.00014999,2]
[424973185,1781364647000,-713.65,0.00014999,2]
[424973184,1781364647000,-713.65,0.00014999,2]
[424973186,1781364647000,-713.65,0.00014999,2]
[424973190,1781364647000,-500.0,0.00014999,2]
[424973187,1781364647000,-713.65,0.00014999,2]
[424973180,1781364647000,-713.65,0.00014999,2]
[424973189,1781364647000,-713.79012681,0.00014999,2]
[424973239,1781364648000,-500.0,0.00014999,2]
[424973242,1781364648000,-564.95439082,0.00014999,2]
[424973240,1781364648000,-539.76957447,0.00014999,2]
[424973236,1781364648000,-500.0,0.00014999,2]
[424973238,1781364648000,-500.0,0.00014999,2]
[424973237,1781364648000,-500.0,0.00014999,2]
[424973235,1781364648000,-500.0,0.00014999,2]
[424973243,1781364648000,-521.81,0.00014999,2]
[424973241,1781364648000,-500.0,0.00014999,2]
[424973244,1781364648000,-521.81,0.00014999,2]
[424973249,1781364648000,-521.81,0.00014999,2]
[424973248,1781364648000,-521.81,0.00014999,2]
[424973245,1781364648000,-521.81,0.00014999,2]
[424973251,1781364648000,-521.81,0.00014999,2]
[424973252,1781364648000,-521.81,0.00014999,2]
[424973250,1781364648000,-521.81,0.00014999,2]
[424973246,1781364648000,-521.81,0.00014999,2]
[424973234,1781364648000,-453.49,0.00014999,2]
[424973254,1781364648000,-521.81,0.00014999,2]
[424973253,1781364648000,-521.81,0.00014999,2]
[424973262,1781364648000,-500.0,0.00014999,2]
[424973247,1781364648000,-521.81,0.00014999,2]
[424973232,1781364648000,-684.76,0.00014999,2]
[424973227,1781364648000,-684.76,0.00014999,2]
[424973233,1781364648000,-684.77977952,0.00014999,2]
[424973210,1781364648000,-500.0,0.00014999,2]
[424973211,1781364648000,-500.0,0.00014999,2]
[424973209,1781364648000,-500.0,0.00014999,2]
[424973213,1781364648000,-500.0,0.00014999,2]
[424973212,1781364648000,-500.0,0.00014999,2]
[424973214,1781364648000,-500.0,0.00014999,2]
[424973258,1781364648000,-500.0,0.00014999,2]
[424973215,1781364648000,-500.0,0.00014999,2]
[424973217,1781364648000,-500.0,0.00014999,2]
[424973216,1781364648000,-500.0,0.00014999,2]
[424973218,1781364648000,-500.0,0.00014999,2]
[424973219,1781364648000,-620.72,0.00014999,2]
[424973220,1781364648000,-500.0,0.00014999,2]
[424973222,1781364648000,-500.0,0.00014999,2]
[424973223,1781364648000,-500.0,0.00014999,2]
[424973224,1781364648000,-684.76,0.00014999,2]
[424973226,1781364648000,-684.76,0.00014999,2]
[424973228,1781364648000,-684.76,0.00014999,2]
[424973230,1781364648000,-684.76,0.00014999,2]
[424973231,1781364648000,-684.76,0.00014999,2]
[424973229,1781364648000,-684.76,0.00014999,2]
[424973225,1781364648000,-684.76,0.00014999,2]
[424973221,1781364648000,-500.0,0.00014999,2]
[424973256,1781364648000,-521.95879568,0.00014999,2]
[424973257,1781364648000,-500.0,0.00014999,2]
[424973286,1781364648000,-500.0,0.00014999,2]
[424973288,1781364648000,-500.0,0.00014999,2]
[424973289,1781364648000,-500.0,0.00014999,2]
[424973293,1781364648000,-671.71067639,0.00014999,2]
[424973294,1781364648000,-300.0,0.00014999,2]
[424973290,1781364648000,-500.0,0.00014999,2]
[424973287,1781364648000,-500.0,0.00014999,2]
[424973292,1781364648000,-300.0,0.00014999,2]
[424973295,1781364648000,-300.0,0.00014999,2]
[424973291,1781364648000,-328.23556379,0.00014999,2]
[424973284,1781364648000,-500.0,0.00014999,2]
[424973297,1781364648000,-234824.36738565,0.00015,2]
[424973298,1781364648000,-1748.0,0.00015,2]
[424973300,1781364648000,-151.0,0.00015,2]
[424973301,1781364648000,-200.0,0.00015,2]
[424973299,1781364648000,-639.26,0.00015,2]
[424973255,1781364648000,-521.81,0.00014999,2]
[424973303,1781364648000,-151.0,0.00015,2]
[424973305,1781364648000,-443.41252322,0.00015,2]
[424973304,1781364648000,-151.0,0.00015,2]
[424973307,1781364648000,-500.0,0.00015,2]
[424973306,1781364648000,-500.0,0.00015,2]
[424973296,1781364648000,-10206929.76501062,0.00015,2]
[424973283,1781364648000,-1283.18152345,0.00014999,2]
[424973302,1781364648000,-151.0,0.00015,2]
[424973282,1781364648000,-1283.14,0.00014999,2]
[424973279,1781364648000,-1283.14,0.00014999,2]
[424973259,1781364648000,-500.0,0.00014999,2]
[424973260,1781364648000,-500.0,0.00014999,2]
[424973263,1781364648000,-500.0,0.00014999,2]
[424973264,1781364648000,-500.0,0.00014999,2]
[424973265,1781364648000,-464.21453391,0.00014999,2]
[424973266,1781364648000,-500.0,0.00014999,2]
[424973270,1781364648000,-1283.14,0.00014999,2]
[424973268,1781364648000,-500.0,0.00014999,2]
[424973274,1781364648000,-1283.14,0.00014999,2]
[424973267,1781364648000,-500.0,0.00014999,2]
[424973261,1781364648000,-500.0,0.00014999,2]
[424973271,1781364648000,-1283.14,0.00014999,2]
[424973269,1781364648000,-231.73388163,0.00014999,2]
[424973281,1781364648000,-1283.14,0.00014999,2]
[424973277,1781364648000,-1283.14,0.00014999,2]
[424973275,1781364648000,-1283.14,0.00014999,2]
[424973278,1781364648000,-1283.14,0.00014999,2]
[424973276,1781364648000,-1283.14,0.00014999,2]
[424973272,1781364648000,-1283.14,0.00014999,2]
[424973273,1781364648000,-1283.14,0.00014999,2]
[424973285,1781364648000,-500.0,0.00014999,2]
[424973280,1781364648000,-1283.14,0.00014999,2]
[424973327,1781364649000,-417.224131,0.00015,2]
[424973333,1781364649000,-866.624057,0.00015068,2]
[424973330,1781364649000,-150.0,0.00015068,2]
[424973329,1781364649000,-417.224131,0.00015,2]
[424973332,1781364649000,-866.624057,0.00015068,2]
[424973334,1781364649000,-866.624057,0.00015068,2]
[424973331,1781364649000,-900.0,0.00015068,2]
[424973340,1781364649000,-2000.0,0.00015212,2]
[424973335,1781364649000,-866.624057,0.00015068,2]
[424973337,1781364649000,-301.43486,0.00015097,7]
[424973338,1781364649000,-300.0,0.00015211,2]
[424973343,1781364649000,-2000.0,0.00015212,2]
[424973342,1781364649000,-2000.0,0.00015212,2]
[424973339,1781364649000,-2000.0,0.00015212,2]
[424973325,1781364649000,-200.0,0.00015,2]
[424973336,1781364649000,-1672.7364795,0.00015094,2]